bitfinex-derivatives/quotes_ETHF0:USTF0_20251008
["timestamp","ask_amount","ask_price","bid_price","bid_amount"]
[1759945873520,1.09483691,4543.8,4543.7,3.60595594]
[1759945874322,2.51343691,4543.8,4543.7,3.82795594]
[1759945875122,1.09483691,4543.8,4543.7,3.82795594]
[1759945876228,1.09483691,4543.8,4543.7,7.3221597]
[1759945877027,1.79533691,4543.8,4543.7,7.3221597]
[1759945877624,1.79533691,4543.8,4543.7,3.82795594]
[1759945877825,1.09483691,4543.8,4543.7,3.82795594]
[1759945878019,1.79533691,4543.8,4543.7,3.60595594]
[1759945878226,2.51343691,4543.8,4543.7,3.82795594]
[1759945879632,1.09483691,4543.8,4543.7,7.3221597]
[1759945879929,1.79533691,4543.8,4543.7,7.3221597]
[1759945880228,1.09483691,4543.8,4543.7,7.3221597]
[1759945880432,1.09483691,4543.8,4543.7,7.1001597]
[1759945880732,1.09483691,4543.8,4543.7,7.3221597]
[1759945881427,1.79533691,4543.8,4543.7,7.3221597]
[1759945882528,0.00183691,4543.8,4543.7,7.3221597]
[1759945882736,0.00183691,4543.8,4543.7,12.3221597]
[1759945883030,0.00183691,4543.8,4543.7,12.1001597]
[1759945883230,1.09483691,4543.8,4543.7,12.3221597]
[1759945883630,0.00183691,4543.8,4543.7,7.3221597]
[1759945884032,1.09483691,4543.8,4543.7,7.3221597]
[1759945884433,1.79533691,4543.8,4543.7,7.3221597]
[1759945884633,1.79533691,4543.8,4543.7,3.60595594]
[1759945884932,1.79533691,4543.8,4543.7,3.82695594]
[1759945885121,2.51343691,4543.8,4543.7,3.82695594]
[1759945885825,0.00183691,4543.8,4543.7,3.82695594]
[1759945886631,1.09483691,4543.8,4543.7,3.82695594]
[1759945887228,0.00183691,4543.8,4543.7,3.82695594]
[1759945889521,0.00183691,4543.8,4543.7,3.60595594]
[1759945889727,0.00183691,4543.8,4543.7,4.59377035]
[1759945890435,1.09483691,4543.8,4543.7,4.59377035]
[1759945890827,0.00183691,4543.8,4543.7,4.59377035]
[1759945891430,0.00183691,4543.8,4543.7,3.82695594]
[1759945891831,0.00183691,4543.8,4543.7,4.83913914]
[1759945892031,0.00183691,4543.8,4543.7,4.61813914]
[1759945892227,0.00183691,4543.8,4543.7,4.83913914]
[1759945892431,1.09483691,4543.8,4543.7,4.83913914]
[1759945892633,0.00183691,4543.8,4543.7,4.83913914]
[1759945892836,1.09483691,4543.8,4543.7,4.83913914]
[1759945893238,0.00183691,4543.8,4543.7,4.83913914]
[1759945893436,0.00183691,4543.8,4543.7,5.99384259]
[1759945893842,0.00183691,4543.8,4543.7,6.15304466]
[1759945895238,0.00183691,4543.8,4543.7,5.76831033]
[1759945895439,0.00183691,4543.8,4543.7,4.77734121]
[1759945895641,0.00183691,4543.8,4543.7,4.99834121]
[1759945896040,2.51343691,4543.8,4543.7,4.37635813]
[1759945896341,0.00183691,4543.8,4543.7,3.82695594]
[1759945896533,0.00183691,4543.8,4543.7,4.59735813]
[1759945896733,0.00183691,4543.8,4543.7,3.82695594]
[1759945896938,2.51343691,4543.8,4543.7,4.5978887]
[1759945897340,1.79533691,4543.8,4543.7,3.82695594]
[1759945898237,1.09483691,4543.8,4543.7,3.82695594]
[1759945898433,1.79533691,4543.8,4543.7,4.98265939]
[1759945898638,1.09483691,4543.8,4543.7,4.98265939]
[1759945899245,0.00183691,4543.8,4543.7,4.98265939]
[1759945899438,0.00183691,4543.8,4543.7,3.82795594]
[1759945899840,1.70773691,4543.8,4543.7,3.82795594]
[1759945900445,1.00183691,4543.8,4543.7,3.82795594]
[1759945900644,2.36443691,4543.8,4543.7,3.82795594]
[1759945901046,2.36443691,4543.8,4543.7,3.60595594]
[1759945901242,2.36443691,4543.8,4543.7,3.82795594]
[1759945901443,2.36443691,4543.8,4543.7,3.60595594]
[1759945901643,2.36443691,4543.8,4543.7,4.98989792]
[1759945901943,1.70773691,4543.8,4543.7,4.76789792]
[1759945902147,1.00183691,4543.8,4543.7,3.60595594]
[1759945902342,2.36223691,4543.8,4543.7,3.60595594]
[1759945904543,2.36223691,4543.8,4543.7,4.76789792]
[1759945905049,2.36223691,4543.8,4543.7,0.39815594]
[1759945905342,1.00183691,4543.8,4543.7,3.60595594]
[1759945905548,1.68073691,4543.8,4543.7,6.53894581]
[1759945905744,1.00183691,4543.8,4543.7,6.53894581]
[1759945906346,0.00183691,4543.8,4543.7,4.99934121]
[1759945907739,1.01473691,4543.8,4543.7,4.99934121]
[1759945908346,1.01473691,4543.8,4543.7,4.77734121]
[1759945908347,1.69363691,4543.8,4543.7,4.77734121]
[1759945908546,1.69363691,4543.8,4543.7,4.99934121]
[1759945908746,1.01473691,4543.8,4543.7,4.99934121]
[1759945909953,1.69363691,4543.8,4543.7,4.99934121]
[1759945910150,2.37513691,4543.8,4543.7,4.99934121]
[1759945910347,2.37513691,4543.8,4543.7,4.77734121]
[1759945910555,2.37513691,4543.8,4543.7,4.99934121]
[1759945910750,2.37513691,4543.8,4543.7,4.77734121]
[1759945911155,2.37513691,4543.8,4543.7,3.82795594]
[1759945911357,7.37513691,4543.8,4543.7,3.20996594]
[1759945911657,7.37513691,4543.8,4543.7,3.60595594]
[1759945912262,7.37513691,4543.8,4543.7,0.39815594]
[1759945912462,7.37513691,4543.8,4543.7,1.56013132]
[1759945913958,1.0129,4544.4,4543.7,0.22416594]
[1759945914166,1.6918,4544.4,4544.3,4.77512527]
[1759945914464,2.3733,4544.4,4544.3,4.99712527]
[1759945915052,1.6918,4544.4,4544.3,4.99712527]
[1759945915251,1.01522505,4544.4,4544.3,4.99712527]
[1759945915863,0.00232505,4544.4,4544.3,4.99712527]
[1759945916358,1.01522505,4544.4,4544.3,4.99712527]
[1759945916561,1.69412505,4544.4,4544.3,4.99712527]
[1759945916760,2.37562505,4544.4,4544.3,3.82574]
[1759945917557,3.2078,4545.9,4544.3,3.82574]
[1759945917558,0.4056,4546.0,4545.2,0.39586]
[1759945917764,1.7722,4545.5,4545.4,3.34734904]
[1759945918263,1.7722,4545.5,4545.4,1.94494904]
[1759945918466,0.77462664,4545.5,4545.4,1.17138527]
[1759945918660,1.18022664,4545.5,4545.4,1.17138527]
[1759945918960,1.18022664,4545.5,4545.3,4.37720377]
[1759945919361,1.18022664,4545.5,4545.4,2.57378527]
[1759945919665,2.19312664,4545.5,4545.4,2.57378527]
[1759945919867,2.19312664,4545.5,4545.4,1.4024]
[1759945920766,2.19312664,4545.5,4545.4,0.7074]
[1759945921471,0.00242664,4545.5,4545.4,2.6145]
[1759945923570,0.00242664,4545.5,4545.4,2.3925]
[1759945923768,0.00242664,4545.5,4545.4,3.77201299]
[1759945924067,2.78132664,4545.5,4545.4,0.7074]
[1759945924259,2.78132664,4545.5,4545.3,3.4298]
[1759945924260,1.0129,4545.4,4545.3,3.4298]
[1759945924460,2.3733,4545.4,4545.3,5.60380754]
[1759945924764,2.3733,4545.4,4545.1,2.14761299]
[1759945924765,0.39585,4545.3,4545.1,0.77160754]
[1759945925064,0.40802664,4545.5,4544.3,3.78669293]
[1759945925065,1.0129,4544.9,4544.3,3.78669293]
[1759945925272,2.7789,4544.5,4544.4,3.01043]
[1759945925572,1.6918,4545.0,4544.9,2.3925]
[1759945925767,1.42092664,4545.5,4545.4,0.7074]
[1759945925966,2.78132664,4545.5,4545.4,2.3925]
[1759945926675,2.37572664,4545.5,4545.4,2.3925]
[1759945927572,2.78132664,4545.5,4545.4,1.4024]
[1759945928883,2.78132664,4545.5,4545.4,0.7074]
[1759945929675,2.78132664,4545.5,4545.4,1.3809]
[1759945930483,2.78132664,4545.5,4545.4,2.3796]
[1759945930678,2.78132664,4545.5,4545.4,5.5874]
[1759945930879,2.78132664,4545.5,4545.4,4.5887]
[1759945931286,2.8346,4545.0,4544.9,4.44489293]
[1759945931484,2.8346,4545.0,4544.9,4.48389]
[1759945932080,2.8346,4545.0,4544.9,4.088]
[1759945932481,2.8346,4545.0,4544.9,0.8802]
[1759945933182,2.8346,4545.0,4544.9,0.6582]
[1759945933586,2.8346,4545.0,4544.9,1.3317]
[1759945933786,2.8346,4545.0,4544.9,2.3304]
[1759945934785,2.8346,4545.0,4544.9,1.72759]
[1759945934986,2.8346,4545.0,4544.9,0.6582]
[1759945935390,2.4233,4545.0,4544.9,2.3304]
[1759945935587,2.8346,4545.0,4544.9,1.3317]
[1759945936182,0.22442664,4545.5,4544.9,2.3304]
[1759945936389,2.64772664,4545.5,4545.4,2.72624]
[1759945936588,0.92512664,4545.5,4545.4,3.30513293]
[1759945936889,0.70312664,4545.5,4545.4,3.52713293]
[1759945937086,1.75052664,4545.5,4545.4,3.52713293]
[1759945937290,2.82155664,4545.5,4545.4,2.90929293]
[1759945937490,2.42572664,4545.5,4545.4,2.72624]
[1759945938489,2.42572664,4545.5,4545.4,2.3304]
[1759945938887,2.42572664,4545.5,4545.4,2.72624]
[1759945939093,2.42572664,4545.5,4545.4,3.30494386]
[1759945939889,2.42572664,4545.5,4545.4,4.47587936]
[1759945940596,3.23285664,4545.5,4545.4,4.47587936]
[1759945940991,3.23285664,4545.5,4545.4,0.6582]
[1759945941391,3.23285664,4545.5,4545.4,1.23690386]
[1759945942197,3.23285664,4545.5,4545.4,1.63274386]
[1759945942398,3.23285664,4545.5,4545.4,1.23690386]
[1759945942894,3.23285664,4545.5,4545.4,1.63274386]
[1759945943088,2.42572664,4545.5,4545.4,3.30494386]
[1759945943294,0.00242664,4545.5,4545.4,2.72624]
[1759945945296,0.00242664,4545.5,4545.4,2.94824]
[1759945945500,2.4233,4546.9,4546.8,1.72742]
[1759945945698,2.4233,4546.9,4546.8,2.72612]
[1759945946602,2.42485104,4546.9,4546.8,2.72612]
[1759945946796,2.42485104,4546.9,4546.8,1.72742]
[1759945947199,2.42485104,4546.9,4546.8,2.72612]
[1759945949003,2.42485104,4546.9,4546.7,3.2078]
[1759945949004,2.81902,4546.8,4546.7,3.2078]
[1759945950706,2.4233,4546.8,4546.7,3.866]
[1759945951005,2.6453,4546.8,4546.7,3.866]
[1759945951407,2.4233,4546.8,4546.7,3.866]
[1759945951601,2.6453,4546.8,4546.7,3.2078]
[1759945951902,2.6453,4546.8,4546.7,5.5382]
[1759945952204,2.6453,4546.8,4546.7,3.866]
[1759945952405,3.04102,4546.8,4546.7,4.26173]
[1759945952705,3.04102,4546.8,4546.7,3.2078]
[1759945952907,9.2119555,4546.8,4546.7,0.20177273]
[1759945953101,8.04102,4546.8,4546.7,0.20177273]
[1759945953407,10.84289997,4546.8,4546.7,0.20177273]
[1759945955999,11.854679,4546.8,4546.7,0.20177273]
[1759945956203,10.84289997,4546.8,4546.7,0.20177273]
[1759945957100,10.84289997,4546.8,4545.5,0.57942573]
[1759945957101,1.3759,4545.8,4545.5,0.57942573]
[1759945957295,0.39586,4545.2,4545.1,0.57942573]
[1759945957503,2.4233,4545.2,4545.0,0.97529573]
[1759945957800,2.00123903,4546.1,4545.0,0.97529573]
[1759945957801,1.3759,4545.9,4545.8,2.3304]
[1759945958007,1.5979,4545.9,4545.8,3.34217903]
[1759945958209,2.6453,4545.9,4545.8,1.66997903]
[1759945958507,2.6453,4545.9,4545.8,1.01177903]
[1759945959509,2.6453,4545.9,4545.8,1.68397903]
[1759945959900,2.3279,4545.1,4545.0,0.57872139]
[1759945960105,0.6619,4544.8,4544.7,1.98640042]
[1759945960406,2.3279,4544.8,4544.7,1.59050042]
[1759945960609,2.7238,4544.8,4544.6,0.57872139]
[1759945960810,2.3279,4544.8,4544.7,1.01177903]
[1759945961205,2.3279,4544.8,4544.7,1.68397903]
[1759945961511,2.3279,4544.8,4544.7,2.3488]
[1759945961707,2.3279,4544.8,4544.7,2.36587903]
[1759945962108,2.3279,4544.8,4544.7,3.34387903]
[1759945962307,2.3279,4544.8,4544.7,2.36587903]
[1759945963610,0.6619,4544.8,4544.7,3.34387903]
[1759945963813,1.7608,4545.0,4544.9,2.3376]
[1759945964119,2.4243,4544.8,4544.7,1.68807903]
[1759945964412,2.4243,4544.8,4544.7,1.23377903]
[1759945964413,2.8202,4544.8,4544.7,1.23377903]
[1759945964911,2.8202,4544.8,4544.7,1.01177903]
[1759945965112,0.7099,4544.6,4544.5,2.73352]
[1759945965321,1.0509,4545.0,4544.9,2.3376]
[1759945965611,1.7608,4545.0,4544.9,3.34937903]
[1759945965809,2.4243,4545.0,4544.9,3.34937903]
[1759945966008,2.4243,4545.0,4544.9,3.74526903]
[1759945966204,2.4243,4545.0,4544.8,0.57860086]
[1759945966205,0.39589,4544.9,4544.8,0.57860086]
[1759945966406,1.0509,4544.7,4544.6,1.65081086]
[1759945966608,2.4243,4544.7,4544.6,2.66258989]
[1759945967221,2.8202,4544.7,4544.6,2.26667989]
[1759945967530,2.4243,4544.7,4544.6,2.66258989]
[1759945967726,2.4243,4544.7,4544.6,4.32388989]
[1759945967926,0.7099,4544.7,4544.6,3.74528903]
[1759945968127,2.8202,4544.7,4544.6,1.93790561]
[1759945968324,2.8202,4544.7,4544.6,1.25460561]
[1759945968626,2.4243,4544.7,4544.6,1.65051561]
[1759945969230,2.4243,4544.7,4544.6,3.31181561]
[1759945969725,2.4243,4544.7,4544.6,1.93790561]
[1759945969726,2.8202,4544.7,4544.6,1.93790561]
[1759945970027,2.8202,4544.7,4544.6,0.57830561]
[1759945970218,0.6298,4545.0,4544.4,0.57830561]
[1759945970219,2.82021,4544.6,4544.4,0.57830561]
[1759945970423,2.82023,4544.4,4544.3,0.57830561]
[1759945970620,2.82023,4544.4,4544.2,1.01177903]
[1759945970621,1.0509,4544.3,4544.2,1.59008464]
[1759945970923,2.4243,4544.3,4544.2,1.59008464]
[1759945971118,2.4243,4544.3,4544.2,2.26638464]
[1759945972429,2.4243,4544.3,4544.2,3.92768464]
[1759945972731,1.7608,4544.3,4544.2,3.92768464]
[1759945973024,1.7608,4544.3,4544.2,4.32363464]
[1759945973526,0.7099,4544.3,4544.2,3.74532903]
[1759945973826,1.7608,4544.3,4544.2,3.74532903]
[1759945974026,1.7608,4544.3,4544.2,4.32331233]
[1759945975129,1.7608,4544.5,4544.4,1.75552]
[1759945975328,1.7608,4544.5,4544.4,3.31132876]
[1759945976533,1.7608,4544.5,4544.4,2.91540876]
[1759945977137,1.7608,4544.5,4544.4,3.13740876]
[1759945977528,0.7099,4544.5,4544.4,2.91540876]
[1759945977733,1.7608,4544.5,4544.4,3.13740876]
[1759945978330,1.7608,4544.5,4544.4,2.95553]
[1759945978729,0.7099,4544.5,4544.4,2.95553]
[1759945978931,0.3959,4544.7,4544.5,1.3827]
[1759945979131,2.1567,4544.7,4544.6,3.34937903]
[1759945979835,1.7608,4544.7,4544.6,3.34937903]
[1759945980129,1.7608,4544.7,4544.6,3.92743374]
[1759945980436,1.7608,4544.7,4544.6,4.14943374]
[1759945980731,2.4243,4544.7,4544.6,1.47635471]
[1759945980935,2.82021,4544.6,4544.5,0.57805471]
[1759945981135,1.0509,4544.2,4544.1,0.57805471]
[1759945981433,2.4243,4544.2,4544.1,2.15965471]
[1759945981934,2.4243,4544.2,4544.1,1.25435471]
[1759945982331,1.7608,4544.2,4544.1,2.3376]
[1759945982635,2.4243,4544.2,4544.1,2.37137903]
[1759945983430,2.4243,4544.2,4544.1,1.68807903]
[1759945984131,1.76935,4544.2,4544.0,2.40120684]
[1759945984326,2.4243,4544.1,4544.0,2.40120684]
[1759945984636,2.4243,4544.1,4544.0,4.73880684]
[1759945984833,2.4243,4544.1,4544.0,4.34284684]
[1759945985236,2.4243,4544.1,4544.0,2.59337903]
[1759945985532,0.4078,4544.5,4544.4,2.73353]
[1759945985533,1.7608,4544.5,4544.4,2.73353]
[1759945985730,1.7608,4544.5,4544.4,3.96730903]
[1759945986231,1.7608,4544.5,4544.4,4.54644182]
[1759945986432,1.7608,4544.8,4544.7,1.7555]
[1759945986630,0.4125,4545.5,4545.4,1.3596]
[1759945986631,1.7608,4545.5,4545.4,1.3596]
[1759945986834,1.7608,4545.5,4545.4,2.59337903]
[1759945987030,1.7608,4545.5,4545.4,3.57137903]
[1759945987336,2.4243,4545.5,4545.4,3.57137903]
[1759945987635,2.4243,4545.5,4545.4,4.15043129]
[1759945988029,2.4243,4545.9,4545.8,2.0571]
[1759945988225,2.4243,4545.9,4545.8,2.7334]
[1759945988431,2.4243,4545.9,4545.8,3.74517903]
[1759945988729,1.39718,4546.5,4546.1,1.3535]
[1759945988730,2.77447,4546.2,4546.1,1.3535]
[1759945988931,2.77447,4546.2,4546.1,2.36527903]
[1759945989132,2.3787,4546.2,4546.1,3.37987903]
[1759945989531,1.7089,4546.2,4546.1,3.37987903]
[1759945989744,0.00155104,4546.9,4546.6,2.76384]
[1759945989745,1.0256,4546.7,4546.6,2.76384]
[1759945990034,0.00155104,4546.9,4546.8,2.76382]
[1759945990035,1.71045104,4546.9,4546.8,2.76382]
[1759945990239,2.38025104,4546.9,4546.8,4.57573759]
[1759945990433,2.38025104,4546.9,4546.8,3.60187903]
[1759945990939,2.38025104,4546.9,4546.8,2.58727903]
[1759945991140,2.38025104,4546.9,4546.8,2.36527903]
[1759945991339,2.38025104,4546.9,4546.8,3.60187903]
[1759945991931,2.38025104,4546.9,4546.8,2.58727903]
[1759945992234,2.38025104,4546.9,4546.8,3.60187903]
[1759945992841,2.38025104,4546.9,4546.8,0.653]
[1759945993037,1.0256,4546.4,4546.3,1.58991759]
[1759945993244,2.3787,4546.4,4546.3,3.60187903]
[1759945993635,1.7089,4546.4,4546.3,3.60187903]
[1759945993835,1.7089,4546.8,4546.7,2.3681]
[1759945994139,1.7089,4546.8,4546.7,3.60187903]
[1759945994542,0.6833,4546.8,4546.7,3.60187903]
[1759945996146,0.00155104,4546.9,4546.1,0.57813856]
[1759945996147,1.0256,4546.2,4546.1,1.01177903]
[1759945996444,2.7846,4546.0,4545.9,1.66477903]
[1759945996740,1.3531,4545.7,4545.6,1.01177903]
[1759945996942,2.3787,4545.7,4545.6,1.23377903]
[1759945997247,2.3787,4545.7,4545.0,0.98283856]
[1759945997248,2.3787,4545.1,4545.0,1.66477903]
[1759945997544,2.6007,4545.1,4545.0,1.01177903]
[1759945997733,2.6007,4545.1,4544.6,0.222]
[1759945997734,1.3531,4544.7,4544.6,0.222]
[1759945997937,2.3787,4544.7,4544.6,2.28268903]
[1759945998242,2.3787,4544.7,4544.6,2.98601]
[1759945998440,3.0066,4545.5,4545.4,2.76394]
[1759945998640,0.4059,4546.0,4545.7,0.39582]
[1759945998641,1.3531,4545.8,4545.7,0.39582]
[1759945998838,2.6007,4545.8,4545.7,0.653]
[1759945999037,2.6007,4545.8,4545.5,0.39583]
[1759945999340,2.99651,4545.8,4545.5,0.39583]
[1759945999543,2.6007,4545.8,4545.6,0.39582]
[1759946000044,1.0256,4545.7,4545.6,0.39582]
[1759946000243,1.0256,4545.7,4545.4,1.01177903]
[1759946000244,2.3787,4546.4,4546.1,0.39578]
[1759946000445,2.3787,4546.2,4546.1,2.06055903]
[1759946000939,2.3787,4546.2,4546.1,3.77565903]
[1759946002341,1.0892,4546.0,4545.9,0.39579]
[1759946002546,2.7846,4546.0,4545.9,1.04879]
[1759946002847,2.3787,4546.0,4545.9,2.76389]
[1759946003546,0.9053,4546.3,4546.2,2.76387]
[1759946003746,0.6833,4546.6,4546.5,2.3681]
[1759946003951,0.68485104,4546.9,4546.8,2.3681]
[1759946004149,0.68485104,4546.9,4546.8,3.77559903]
[1759946004849,2.38025104,4546.9,4546.8,2.76382]
[1759946005052,2.38025104,4546.9,4546.8,2.76099903]
[1759946005249,2.38025104,4546.9,4546.8,1.04872]
[1759946005450,2.38025104,4546.9,4546.8,0.653]
[1759946006244,2.38025104,4546.9,4546.7,0.39573]
[1759946007250,1.35465104,4546.9,4546.7,0.39573]
[1759946007449,2.3787,4546.8,4546.7,1.04873]
[1759946008251,2.3787,4546.8,4546.7,1.74923]
[1759946011248,2.3787,4546.8,4546.7,2.76383]
[1759946011555,0.6833,4546.8,4546.7,2.76383]
[1759946012055,2.3787,4546.8,4546.7,2.76383]
[1759946012249,2.3787,4546.8,4546.7,2.98583]
[1759946012446,0.00155104,4546.9,4546.8,2.76382]
[1759946012948,0.68485104,4546.9,4546.8,2.76382]
[1759946013156,1.71045104,4546.9,4546.8,2.76382]
[1759946013650,0.00155104,4546.9,4546.8,2.76382]
[1759946014353,1.71045104,4546.9,4546.8,2.76382]
[1759946014647,1.71045104,4546.9,4546.7,0.222]
[1759946014648,2.38025104,4546.9,4546.6,0.57813856]
[1759946014851,2.3787,4546.7,4546.6,1.62687856]
[1759946015049,2.3787,4546.7,4546.6,3.56397856]
[1759946015247,0.00155104,4546.9,4546.8,2.3681]
[1759946015452,0.00155104,4546.9,4546.8,2.98582]
[1759946017651,0.00155104,4546.9,4546.8,3.56395856]
[1759946018345,0.68485104,4546.9,4546.8,3.56395856]
[1759946018548,1.69305104,4546.9,4546.8,3.56395856]
[1759946018748,0.00155104,4546.9,4546.8,3.56395856]
[1759946019354,2.31065104,4546.9,4546.8,3.34195856]
[1759946019556,2.31065104,4546.9,4546.8,3.56395856]
[1759946019858,1.65525104,4546.9,4546.8,3.56395856]
[1759946021357,0.00155104,4546.9,4546.8,3.56395856]
[1759946021660,0.00155104,4546.9,4546.8,2.98582]
[1759946022659,0.00155104,4546.9,4546.8,7.71875595]
[1759946022860,0.00155104,4546.9,4546.8,7.71775595]
[1759946024463,0.00155104,4546.9,4546.8,6.94690454]
[1759946025066,0.00155104,4546.9,4546.8,7.71771945]
[1759946025357,0.00155104,4546.9,4546.8,7.52500801]
[1759946025559,0.00155104,4546.9,4546.8,3.34192347]
[1759946025759,2.29985104,4546.9,4546.8,1.97022]
[1759946026163,0.00155104,4546.9,4546.8,2.96302]
[1759946026762,1.63525104,4546.9,4546.8,2.96302]
[1759946026960,0.00155104,4546.9,4546.8,2.96302]
[1759946027360,0.00155104,4546.9,4546.8,2.74202]
[1759946027564,0.00155104,4546.9,4546.8,2.96302]
[1759946027762,0.67895104,4546.9,4546.8,2.96302]
[1759946027955,0.67895104,4546.9,4546.5,0.3954]
[1759946027956,2.29985104,4546.9,4546.5,0.57810347]
[1759946028155,2.2983,4546.6,4546.5,2.65025347]
[1759946028359,2.2983,4546.6,4546.5,2.29315]
[1759946028565,2.2983,4546.6,4546.5,0.6836]
[1759946028764,2.2983,4546.3,4546.2,2.43190982]
[1759946028962,2.2983,4546.3,4546.2,2.75040635]
[1759946029158,2.2983,4546.3,4546.2,3.52220635]
[1759946029366,2.6722,4546.0,4545.9,0.57810347]
[1759946029560,2.2983,4545.9,4545.6,0.57810347]
[1759946029766,2.2983,4545.9,4545.5,0.97393347]
[1759946030067,2.2983,4545.9,4545.6,0.57810347]
[1759946030268,2.6941,4545.9,4545.6,0.57810347]
[1759946030471,2.2983,4545.9,4545.6,0.97392347]
[1759946030672,2.2983,4545.9,4545.7,0.39581]
[1759946030873,1.342,4545.9,4545.7,0.39581]
[1759946031073,1.7378,4545.9,4545.5,0.57810347]
[1759946031273,1.342,4545.4,4545.3,2.82775982]
[1759946031571,2.2983,4545.4,4545.3,2.47065635]
[1759946031773,2.2983,4545.4,4545.3,2.43325444]
[1759946031973,2.2983,4545.4,4545.3,1.85380635]
[1759946032271,2.2983,4545.4,4545.3,1.17020635]
[1759946033178,2.2983,4544.9,4544.8,1.26304809]
[1759946033472,2.2983,4544.9,4544.8,0.9046]
[1759946033677,2.2983,4544.9,4544.8,2.573]
[1759946033884,2.2983,4544.9,4544.8,0.9046]
[1759946034375,2.2983,4544.9,4544.8,2.573]
[1759946034875,2.2983,4544.9,4544.8,0.9046]
[1759946035578,2.2983,4544.9,4544.8,3.34381491]
[1759946036279,2.2983,4544.9,4544.8,2.573]
[1759946036574,2.2983,4544.9,4544.7,0.77081491]
[1759946036777,2.69419,4544.8,4544.6,0.77081491]
[1759946036973,2.69419,4544.8,4544.7,0.57855718]
[1759946037175,2.69419,4544.8,4544.6,0.57855718]
[1759946037581,2.2983,4544.8,4544.6,0.97446718]
[1759946037877,0.39591,4544.6,4544.5,0.57855718]
[1759946038081,0.39593,4544.4,4544.3,0.57855718]
[1759946038377,1.342,4544.4,4544.3,0.6836]
[1759946038774,1.342,4544.4,4544.2,0.97450718]
[1759946038974,2.2983,4544.3,4544.2,0.97450718]
[1759946039177,2.69424,4544.3,4544.1,0.57855718]
[1759946039673,1.73796,4544.1,4544.0,0.57855718]
[1759946039982,2.6722,4544.0,4543.9,1.74876353]
[1759946040176,1.6337,4544.4,4544.3,1.3592]
[1759946040482,2.2983,4544.4,4544.3,2.352]
[1759946040684,2.2983,4544.4,4544.3,1.3592]
[1759946040986,2.2983,4544.4,4544.3,0.6836]
[1759946041579,2.2983,4544.4,4544.2,0.39594]
[1759946042372,2.5193,4544.3,4544.2,0.39594]
[1759946042578,2.5193,4544.3,4544.0,0.39596]
[1759946042778,2.5193,4544.3,4544.1,0.39595]
[1759946043180,2.5193,4544.3,4544.2,0.6836]
[1759946044384,2.5193,4544.3,4544.2,1.07955]
[1759946045583,2.5193,4544.3,4544.2,1.75515]
[1759946046181,2.5193,4544.3,4544.2,1.07955]
[1759946046381,2.5193,4544.3,4544.2,2.74795]
[1759946046583,0.39592,4544.6,4544.4,0.39593]
[1759946046783,0.9897,4545.1,4544.4,0.39593]
[1759946046784,2.2983,4544.5,4544.4,2.74793]
[1759946046987,2.6722,4544.5,4544.4,2.74793]
[1759946047584,3.06808,4545.0,4544.9,1.75509]
[1759946047787,3.29008,4545.0,4544.9,0.6836]
[1759946047982,2.69419,4544.8,4544.7,1.0795]
[1759946048387,2.91619,4544.8,4544.7,1.0795]
[1759946048890,2.91619,4544.8,4544.7,2.684]
[1759946048891,0.222,4544.8,4544.7,2.684]
[1759946049188,1.563,4545.2,4545.1,2.58617]
[1759946049386,2.4592,4545.2,4545.1,2.58617]
[1759946049586,2.85506,4545.2,4545.1,1.03707]
[1759946049884,2.2372,4545.2,4545.1,1.03707]
[1759946050192,2.2372,4545.2,4545.1,2.58617]
[1759946050390,1.563,4545.2,4545.1,2.58617]
[1759946050791,2.63302,4545.7,4545.6,2.1903]
[1759946050990,2.85502,4545.7,4545.6,1.2614]
[1759946051286,2.4592,4545.7,4545.6,2.58612]
[1759946051790,2.4592,4545.7,4545.6,1.65722]
[1759946052591,2.4592,4545.7,4545.6,1.2614]
[1759946053288,2.2372,4545.7,4545.6,1.2614]
[1759946053487,2.4592,4545.7,4545.6,1.2614]
[1759946053686,0.39576,4546.4,4545.8,2.25091]
[1759946053886,2.63296,4546.4,4546.3,0.6412]
[1759946054085,2.4592,4546.4,4546.3,0.6412]
[1759946054287,2.4592,4546.4,4546.3,2.1903]
[1759946055088,0.4,4547.0,4546.2,0.39577]
[1759946055089,1.31405104,4546.9,4546.8,1.2614]
[1759946055296,0.00155104,4546.9,4546.8,3.36050635]
[1759946055587,2.23875104,4546.9,4546.8,3.36050635]
[1759946055788,2.23875104,4546.9,4546.4,0.39575]
[1759946055789,1.7125,4546.5,4546.4,0.39575]
[1759946055994,2.6372,4546.5,4546.4,0.39575]
[1759946056381,2.6372,4546.5,4546.4,1.03695]
[1759946056589,2.6372,4546.5,4546.4,0.39575]
[1759946057285,2.6372,4546.5,4546.4,1.03695]
[1759946057888,1.3125,4546.2,4546.1,0.57855718]
[1759946058095,1.3125,4546.2,4545.1,1.54931078]
[1759946058096,2.2372,4545.4,4545.2,0.39586]
[1759946058298,1.3125,4545.4,4545.3,1.21950983]
[1759946058484,1.3125,4545.4,4545.3,1.83970983]
[1759946058688,1.3125,4545.4,4545.3,2.76860983]
[1759946058889,2.2372,4545.4,4545.3,2.76860983]
[1759946059092,2.2372,4545.4,4545.3,2.1903]
[1759946061194,0.6383,4545.4,4545.3,2.1903]
[1759946061492,1.1457,4545.7,4545.5,0.39583]
[1759946061690,1.1457,4545.7,4545.5,3.16494956]
[1759946061691,1.563,4545.6,4545.5,3.16494956]
[1759946061996,2.2372,4545.6,4545.5,2.76911956]
[1759946062300,0.8593,4545.8,4545.7,2.1903]
[1759946062491,1.784,4545.8,4545.7,2.1903]
[1759946063593,2.4582,4545.8,4545.7,2.1903]
[1759946064298,2.4582,4545.8,4545.7,1.2614]
[1759946064900,1.7125,4545.5,4545.4,2.37091956]
[1759946065196,2.6372,4545.5,4545.4,0.8632]
[1759946065391,2.6372,4545.5,4545.1,0.9289]
[1759946065597,2.6372,4545.0,4544.9,1.03708]
[1759946065798,0.9247,4545.0,4544.9,2.80818]
[1759946065989,0.39585,4545.3,4544.9,2.4123]
[1759946066300,1.563,4545.2,4545.1,3.75637635]
[1759946066799,2.2372,4545.2,4545.1,3.75637635]
[1759946068702,2.2372,4545.2,4545.1,3.97837635]
[1759946069496,0.6383,4545.4,4545.3,0.39585]
[1759946069802,0.6383,4545.4,4545.3,2.58615]
[1759946070204,0.39582,4545.7,4545.6,2.1903]